Cogmind - Beta 13 @@@ ROGUE MODE // 2024.04.06 @ 11:54:26 Player: Feral_Cog Result: Destroyed by 7T-7IF(R) with Subdweller Shrapnel Launcher Performance ------------- Evolutions (0) 0 Regions Visited (2) 400 Robots Destroyed (30) 150 Value Destroyed (660) 660 Prototype IDs (4) 80 Alien Tech Used (0) 0 Bonus (0) 0 TOTAL SCORE: 1290 Bonus ------- None Cogmind --------- Core Integrity 0/250 Matter 260/300 Energy 150/150 System Corruption 0% Temperature Cool (0) Movement Treading (260) Ox1 Location -10/Subcaves Parts ------- > --- POWER (1) -------- Light Angular Momentum Engine > --- PROPULSION (2) --- Spiked Treads > --- UTILITY (2) ------ Scrap Shield > --- WEAPON (2) ------- Battle Rifle > --- INVENTORY (5) ---- Subdweller Power Source Improved Heat Sink Small Storage Unit Multitool Peak State ------------ > --- POWER ------------ Light Angular Momentum Engine > --- PROPULSION ------- Spiked Treads Spiked Treads > --- UTILITY ---------- Scrap Shield > --- WEAPON ----------- Flamer Enhanced Flamer > --- INVENTORY -------- Subdweller Power Source Improved Heat Sink Beam Cannon Multitool [Rating: 18] Favorites ----------- Power Ion Engine Engine Ion Engine Propulsion Aluminum Leg Treads Spiked Treads Leg Aluminum Leg Utility Small Storage Unit Device Structural Scanner Storage Small Storage Unit Protection Medium Armor Plating Weapon Beam Cannon Energy Gun Small Laser Energy Cannon Beam Cannon Ballistic Gun Assault Rifle Special Weapon Mining Laser Build | -11 -10 -10 ------- Run | Yrd Mat Sub Slots Evolved . | . . . Power . | . . . Propulsion . | . . . Utility . | . . . Weapon . | . . . Parts Attached 48 | 7 22 19 Power 7 | 1 4 2 Engine 7 | 1 4 2 Core . | . . . Reactor . | . . . Propulsion 10 | 2 6 2 Treads 2 | . . 2 Leg 8 | 2 6 . Wheel . | . . . Hover . | . . . Flight . | . . . Utility 16 | 1 9 6 Device 4 | . 4 . Storage 4 | 1 3 . Processor . | . . . Hackware . | . . . Protection 8 | . 2 6 Artifact . | . . . Weapon 15 | 3 3 9 Energy Gun 1 | 1 . . Energy Cannon 5 | . 2 3 Ballistic Gun 3 | 2 . 1 Ballistic Cannon . | . . . Launcher . | . . . Special Weapon 6 | . 1 5 Impact Weapon . | . . . Slashing Weapon . | . . . Piercing Weapon . | . . . Special Melee Weapon . | . . . Unidentified Prototypes . | . . . Parts Lost 10 | . 2 8 Power . | . . . Propulsion 2 | . 1 1 Utility 5 | . 1 4 Weapon 3 | . . 3 Highest Loss Streak 6 | . 1 6 To Critical Strikes . | . . . Average Slot Usage (%) 96 | . 96 96 Engine 14 | . 14 14 Treads 3 | . . 6 Leg 24 | . 28 20 Device 3 | . 7 . Storage 12 | . 13 12 Protection 9 | . 4 13 Energy Cannon 18 | . 19 17 Ballistic Gun 3 | . 8 . Special Weapon 5 | . . 9 Naked Turns . | . . . Heaviest Build 31 | 13 23 31 Greatest Support 40 | 20 20 40 Greatest Overweight (x) 3 | 3 1 1 Average Overweight (x) . | . . . Largest Inventory Capacity 25 | 8 25 8 Average Capacity 7 | 7 7 7 Most Carried 8 | 5 8 8 Average Carried 6 | 1 5 7 Final Capacity 8 | 8 8 5 Final Carried 6 | 2 6 4 Class Distribution -------------------- 83% | Mutant 10% | Scavenger-Mutant 5% | Derelict-Mutant Dominant Class ---------------- Mutant | -10/Materials Mutant | -10/Subcaves Resources | -11 -10 -10 ----------- Run | Yrd Mat Sub Matter Collected 805 | 242 407 156 Remotely . | . . . Salvage Created 1014 | . 900 114 Parts 65 | . 57 8 Haulers Intercepted 2 | . 2 . Recyclers Shooed . | . . . Parts Field Recycled . | . . . Retrieved Matter . | . . . Parts Self-Destructed 5 | . . 5 Prevented . | . . . Kills | -11 -10 -10 ------- Run | Yrd Mat Sub Combat Hostiles Destroyed 19 | . 15 4 Guns 5 | . 5 . Cannons 14 | . 10 4 Classes Destroyed 10 | . 9 1 Worker 2 | . 2 . Tunneler 1 | . 1 . Hauler 2 | . 2 . Recycler 1 | . 1 . Mechanic 1 | . 1 . Operator 1 | . 1 . Watcher 3 | . 3 . Swarmer 5 | . 3 2 Grunt 12 | . 12 . Subdweller 2 | . . 2 Best Kill Streak 6 | . 6 2 Combat Bots Only 5 | . 5 2 Max Kills in Single Turn 1 | . 1 1 Gunslinging . | . . . Exploded . | . . . Melee . | . . . Uniques/NPCs Destroyed . | . . . Combat | -11 -10 -10 -------- Run | Yrd Mat Sub Hostile Shots Fired 209 | . 92 117 Missed 55 | . 20 35 Damage Taken 2154 | . 838 1316 Core 285 | . 132 153 Absorbed by Shields . | . . . Core Remaining (%) 100 | 100 . . Volleys Fired 128 | . 85 43 Largest 2 | . 2 2 Hottest 180 | . 120 180 Shots Fired 225 | . 166 59 Gun 80 | . 80 . Cannon 103 | . 82 21 Launcher . | . . . Special 42 | . 4 38 Kinetic 80 | . 80 . Thermal 145 | . 86 59 Explosive . | . . . Electromagnetic . | . . . Robot Hit Streak 15 | . 8 15 Robot Miss Streak 3 | . 3 3 Penetration Max . | . . . Secondary Targets . | . . . Shots Hit Robots 116 | . 87 29 Core Hits 42 | . 35 7 Critical Kills . | . . . Critical Parts Destroyed . | . . . Critical Strikes 1 | . . 1 Burn 1 | . . 1 Melee Attacks . | . . . Impact . | . . . Slashing . | . . . Piercing . | . . . Sneak Attacks . | . . . Combat Hostiles . | . . . Follow-up Attacks . | . . . Damage Inflicted 1554 | . 1249 305 Guns 516 | . 516 . Cannons 939 | . 733 206 Explosions . | . . . Melee . | . . . Ramming . | . . . Kinetic 516 | . 516 . Thermal 1038 | . 733 305 Explosive . | . . . Electromagnetic . | . . . Impact . | . . . Slashing . | . . . Piercing . | . . . Highest Corruption . | . . . Average Corruption . | . . . Corruption Purged . | . . . Corruption Blocked . | . . . Overload Shots . | . . . Overflow Damage 2 | . . 2 Projectiles 2 | . . 2 Explosions . | . . . Melee . | . . . Knockbacks . | . . . Impact . | . . . Kinetic . | . . . Secondary . | . . . Self-Inflicted Damage . | . . . Shots . | . . . Rammed . | . . . Targets Rammed . | . . . Kicked . | . . . Crushed . | . . . Highest Temperature 328 | . 310 328 Average Temperature 102 | . 104 91 Received Heat Transfer 838 | . 387 451 Effects 2 | . . 2 Matter Decay 1 | . . 1 Damage (minor) 1 | . . 1 Siege Activations . | . . . Robots Corrupted . | . . . Combat Hostiles . | . . . Parts Fried . | . . . Impact Corruptions . | . . . Robots Melted . | . . . Combat Hostiles . | . . . Parts Melted 2 | . 1 1 Heat Transferred 2878 | . 1554 1324 Parts Sabotaged . | . . . Parts Stolen . | . . . Parts Stripped . | . . . Power Chain Reactions . | . . . Alert | -11 -10 -10 ------- Run | Yrd Mat Sub Peak Influence 188 | . 188 . Initial . | . . . Average 68 | . 71 . Maximum Alert Level . | . . . Low Security (%) 100 | 100 100 . Level 1 . | . . . Level 2 . | . . . Level 3 . | . . . Level 4 . | . . . Level 5 . | . . . High Security . | . . . Max Security . | . . . Squads Dispatched 4 | . 4 . Investigation 3 | . 3 . Extermination . | . . . Reinforcement 1 | . 1 . Assault . | . . . Garrison . | . . . Intercept . | . . . Searches Triggered . | . . . Construction Impeded . | . . . Haulers Reinforced . | . . . Active Scanning Responses . | . . . Cargo Convoy Interrupts . | . . . Stealth | -11 -10 -10 --------- Run | Yrd Mat Sub Distress Signals . | . . . Communications Jammed . | . . . Distress Signals . | . . . Times Spotted 63 | . 26 37 Peak Tracking Total 6 | . 5 6 Tactical Retreats 5 | . 2 3 Traps | -11 -10 -10 ------- Run | Yrd Mat Sub Traps Triggered 3 | . 3 . Indirectly . | . . . Trap Hack Attempts . | . . . Triggered . | . . . Disarmed . | . . . Reprogrammed . | . . . Reused . | . . . Traps Extracted . | . . . Installed . | . . . Triggered . | . . . Machines | -11 -10 -10 ---------- Run | Yrd Mat Sub Machines Disabled . | . . . Max in Single Turn . | . . . Machines Repaired . | . . . Machines Dismantled . | . . . Machines Sabotaged . | . . . Overloaded Fab Kills . | . . . Hacking | -11 -10 -10 --------- Run | Yrd Mat Sub Machines Accessed 4 | . 3 1 Terminals 3 | . 3 . Fabricators . | . . . Repair Stations . | . . . Recycling Units . | . . . Scanalyzers . | . . . Garrison Access . | . . . Total Hacks 12 | . 8 4 Successful 9 | . 5 4 Failed 3 | . 3 . Catastrophic . | . . . Database Lockouts . | . . . Manual . | . . . Terminals 8 | . 8 . Fabricators . | . . . Repair Stations . | . . . Recycling Units . | . . . Scanalyzers . | . . . Garrison Access . | . . . Terminal Hacks 9 | . 5 4 Record 4 | . . 4 Prototype ID Bank 2 | . 2 . Unreport Threat 1 | . 1 . Zone Layout 2 | . 2 . Fabricator Hacks . | . . . Repair Station Hacks . | . . . Recycling Unit Hacks . | . . . Scanalyzer . | . . . Garrison Access Hacks . | . . . Unauthorized Hacks . | . . . Terminals . | . . . Fabricators . | . . . Repair Stations . | . . . Recycling Units . | . . . Scanalyzers . | . . . Garrison Access . | . . . Data Cores Recovered . | . . . Used . | . . . Hacking Detections 2 | . 2 . Full Trace Events 1 | . 1 . Feedback Events . | . . . Feedback Blocked . | . . . Robot Schematics Acquired . | . . . Robots Built . | . . . Authchips . | . . . Time . | . . . Total Robot Build Rating . | . . . Part Schematics Acquired . | . . . Parts Built . | . . . Authchips . | . . . Time . | . . . Total Part Build Rating . | . . . Parts Repaired . | . . . Time . | . . . Parts Recycled . | . . . Recycled Matter . | . . . Retrieved Matter . | . . . Retrieved Components . | . . . Parts Scanalyzed . | . . . Part Schematics Acquired . | . . . Parts Damaged . | . . . Bothacking | -11 -10 -10 ------------ Run | Yrd Mat Sub Used RIF Installer . | . . . Robots Hacked . | . . . Non-combat . | . . . Combat . | . . . Robot Hacks Applied . | . . . Relay Couplers Released . | . . . Fabnet Peak Effective % . | . . . Robots Rewired . | . . . Allies Hacked . | . . . Hacks Repelled . | . . . Allies | -11 -10 -10 -------- Run | Yrd Mat Sub Total Allies . | . . . Largest Group . | . . . Highest-Rated Group . | . . . Highest-Rated Ally . | . . . Total Orders . | . . . Ally Attacks . | . . . Total Damage . | . . . Kills . | . . . Allies Corrupted . | . . . Allies Melted . | . . . Intel | -11 -10 -10 ------- Run | Yrd Mat Sub Robot Analysis Total . | . . . Derelict Logs Recovered 1 | . . 1 Drone Launches . | . . . Drone Recoveries . | . . . Exploration | -11 -10 -10 ------------- Run | Yrd Mat Sub Turns Passed 3485 | 72 1492 1921 Spaces Moved 1752 | 46 771 935 Core 17 | 17 . . Treads 233 | . . 233 Legs 1502 | 29 771 702 Wheels . | . . . Hover . | . . . Flight . | . . . Fastest Speed 50 | 50 120 160 Average Speed 160 | 120 136 183 Slowest Speed 260 | 200 190 260 Overloaded Moves . | . . . Propulsion Burnouts . | . . . Robots Hopped . | . . . Cave-ins Triggered . | . . . Exploration Rate (%) 41 | 5 82 37 Regions Visited 2 Branch Regions 1 Pre-discovered Areas . | . . . Known Exits Taken . | . . . Unknown Exits Taken 2 | 1 1 . Scrap Searched . | . . . Spaces Dug . | . . . Terrain Destroyed 1 | . 1 . Melee . | . . . Projectile 1 | . 1 . AOE . | . . . Terrain Rammed . | . . . Walls Destroyed . | . . . Machines Disabled . | . . . Actions | -11 -10 -10 --------- Run | Yrd Mat Sub Total 2143 | 62 1048 1033 Wait 121 | 2 114 5 Move 1750 | 45 770 935 Hop . | . . . Pick Up 56 | 8 33 15 Fast Attach . | . . . Attach 23 | 6 7 10 Detach 3 | . 1 2 Swap 25 | 1 15 9 Drop 32 | . 23 9 Fire 128 | . 85 43 Melee . | . . . Ram . | . . . Kick . | . . . Crush . | . . . Escape Stasis . | . . . Rewire . | . . . Trap . | . . . Miscellaneous 5 | . . 5 Route ------- -11/Scrapyard -10/Materials (discovered 5 exits: [*Mat x2] / [*Min x2] / *Sub) -10/Subcaves (discovered 1 exit: Rec) History --------- Turn | Location | Event 20 | -11/Scrapyard | Discovered new exit (range 16) 73 | -11/Scrapyard | Entered Materials 201 | -10/Materials | Discovered new exit (range 7) 312 | -10/Materials | Build established: Mutant 494 | -10/Materials | Discovered new exit (range 7) 558 | -10/Materials | Discovered new exit (range 13) 725 | -10/Materials | Discovered new exit (range 13) 1054 | -10/Materials | Build established: Scavenger-Mutant 1083 | -10/Materials | Discovered new exit (range 16) 1194 | -10/Materials | Core integrity fell below 50% 1483 | -10/Materials | Build established: Mutant 1565 | -10/Materials | Entered Subcaves 1578 | -10/Subcaves | Identified exit to Recycling 1683 | -10/Subcaves | Ambushed by swarm of Subdwellers 2138 | -10/Subcaves | Shifting Twisted Machinery released Spk. Treads 2139 | -10/Subcaves | Shifting Twisted Machinery released Slug Cannon 2418 | -10/Subcaves | Visited Clippyterm 3360 | -10/Subcaves | A Subdweller sparked back to life 3360 | -10/Subcaves | A Subdweller sparked back to life 3387 | -10/Subcaves | Core integrity fell below 20% 3466 | -10/Subcaves | Lost 6 parts (1n2u3w) 3486 | -10/Subcaves | Destroyed by 7T-7IF(R) with Subdweller Shrapnel Launcher Last Messages --------------- to Scrap Shield. 03418_ Beam Cannon destroyed. 03418_ RW-BJT(R) destroyed. 03422_ Acquired Sml. Storage Unit. 03426_ Acquired Sub. Optics. 03429_ Acquired 3 matter. 03435_ Spk. Treads destroyed. 03451_ Acquired Lgt. Armor Plating. 03460_ Dropped Lgt. Armor Plating. 03461_ Subatomizers dissect the Disposable Heat Sink. 03461_ Dropped Sub. Optics. 03461_ Acquired Scrap Shield. 03466_ Scrap Shield Fragment affixed to Scrap Shield (+41). 03469_ Scrap Shield Fragment affixed to Scrap Shield (+39). 03478_ Scrap Shield Fragment affixed to Scrap Shield (+6). 03482_ Acquired Battle Rifle. Map ----- +----------------------------------------------------+ | ????????????????????##### ###???????????????????? | | ??????????????????????## ##??????????????????? | | ?????????????????????## #??????????????????? | | ????????????????????## #??????????????????? | | ????????????????????# ###??????????????????? | | ????????????????????# #????????????????????? | | ????????????????????## #????????????????????? | | ?????????????????????# #????????????????????? | | ?????????????????????# #????????????????????? | | ?????????????????????##### ##???????????????????? | | ?????????????????????????# ##??????????????????? | | ?????????????????????????# ##?????????????????? | | ????????????????????###### #?????????????????? | | ??????########???#### ## #?????????????????? | | ??????#"""" #### ####??????????????? | | ??????" " " "### * ### #####??????????? | | ??????""""""""" ## ##;;;; ##?????????? | | ??????"" "" ## ##; """"###???????? | | ???????#"" ## # #; #?####### | | ????????????### ## ## ###"" !#= | | ?????????????# ; ## * %& | | ?????????????# =% | | ?????????????# O ## # !# | | ?????????????# # < & ## " ## | | ?????????????#####< && #" " ## ##? | | ?????????????????# [] @ & !#" "#### ### | | ?????????????????## == =*= *= ## """" | | ??????????????????# ! ! ;## """" | | ??????????????????# ! " &!## ;;;;R& "" "" | | ??????????????????### # !"#& ;### ;; % " """ | | ???????????####?###?#### "## ##?##### " | | ???????????# ### #???##[ ## #??????## "# "" | | ???????????# ##### # ##??????#### " | | ??##???????# ## ## #????????? "### | | ?## ###?????# * ##?????????######?? | | ?# ????## ###?????????????????? | | ??# ??## # # ####???????????????????? | | ??# #?# [ ### ##??????????????????????? | | ??# ## #?###???????????????????????? | | ???# ##??????????????????????????? | | ????### ##?????????????????????????? | | ??????### ###???????????????????????? | | ????????## ### #???????????????????????? | | ?????????# #### ##???????????????????????? | | ?????????# #### ##???????????????????????? | | ?????????## ### ##??????????????????????? | | ??????##### #??????????????????????? | | ??##### ## #??????????????????????? | | ?## ## #?????????????????????? | | ?# ### #?????????????????????? | +----------------------------------------------------+ Best States ------------- Heat Dissipation 35 Energy Generation 18 Energy Capacity 250 Matter Stores 300 Matter Capacity 300 Sight Range 16 Terrain Scan Range 16 Terrain Scan Density 10 Armor Coverage 800 Evasion (%) 55 Recoil Reduction 2 Item Schematics ----------------- None Robot Schematics ------------------ None Fabricated ------------ Nothing Alien Tech Used ----------------- None Achievements -------------- None Challenges ------------ None Game ------ Seed HybridAutogunCarapace Manual? 0 Play Time 00:36:11 Cumulative 12.4 hours Start 2024.04.06 @ 11:11:45 End 2024.04.06 @ 11:54:26 Sessions 1 Manual Loads 0 Difficulty Rogue Special Mode None Game No. 12 Rogue 12 Adventurer 0 Explorer 0 Win Type - Total 0 Types 0/0/0/0/0/0/0/0/0 Lore% 14 Gallery% 13 Achievement% 12 Wizard Run 0 Options --------- Layout 1 ASCII 0 Keyboard 0 Movement Mouse Keybinds 0 Fullscreen 1 Font 24/Smallcaps Map View 50x35 Zoom Use 0% Tactical HUD 1 Map Filters NONE Filters NONE Steam 1 RUN: 5d7f0548-e50c-4c6c-8205-b10d0827d2b5